[Event "Titled Tuesday Blitz April 25 Early 2023"]
[White "Sieciechowicz, Marcin"]
[Black "Gukesh D"]
[WhiteFideId "1130170"]
[BlackFideId "46616543"]
[WhiteElo "2302"]
[BlackElo "2612"]
[Result "0-1"]
[Round "05"]
[TimeControl "180+2"]
[Date "2023.04.25"]
[WhiteClock "0:00:05"]
[BlackClock "0:00:05"]

1. d4 {[%clk 0:03:00]}  Nf6 {[%clk 0:02:59]} 2. c4 {[%clk 0:03:01]}  e6 {[%clk 0:02:59]} 3. Nc3 {[%clk 0:03:01]}  d5 {[%clk 0:02:58]} 4. cxd5 {[%clk 0:03:01]}  exd5 {[%clk 0:02:59]} 5. Bg5 {[%clk 0:03:01]}  Bb4 {[%clk 0:02:59]} 6. e3 {[%clk 0:03:01]}  h6 {[%clk 0:03:00]} 7. Bxf6 {[%clk 0:02:52]}  Qxf6 {[%clk 0:02:59]} 8. Qa4+ {[%clk 0:02:53]}  Nc6 {[%clk 0:02:59]} 9. Nf3 {[%clk 0:02:53]}  O-O {[%clk 0:02:59]} 10. Rc1 {[%clk 0:02:53]}  Rd8 {[%clk 0:02:49]} 11. Be2 {[%clk 0:02:52]}  Bg4 {[%clk 0:02:23]} 12. O-O {[%clk 0:02:49]}  a6 {[%clk 0:02:06]} 13. h3 {[%clk 0:02:49]}  Bf5 {[%clk 0:02:04]} 14. Ne5 {[%clk 0:02:26]}  Bxc3 {[%clk 0:01:14]} 15. Nxc6 {[%clk 0:02:25]}  Bd7 {[%clk 0:01:13]} 16. Rxc3 {[%clk 0:02:16]}  Bxc6 {[%clk 0:01:13]} 17. Qc2 {[%clk 0:02:15]}  Rd6 {[%clk 0:01:13]} 18. Rc1 {[%clk 0:02:08]}  Qg5 {[%clk 0:01:13]} 19. f4 {[%clk 0:02:01]}  Qf6 {[%clk 0:01:11]} 20. Bf3 {[%clk 0:02:00]}  Re8 {[%clk 0:01:11]} 21. Qf2 {[%clk 0:01:57]}  Re7 {[%clk 0:01:10]} 22. b4 {[%clk 0:01:50]}  g5 {[%clk 0:00:59]} 23. Bg4 {[%clk 0:01:22]}  gxf4 {[%clk 0:00:55]} 24. Rf1 {[%clk 0:01:09]}  Bb5 {[%clk 0:00:55]} 25. Re1 {[%clk 0:00:32]}  fxe3 {[%clk 0:00:51]} 26. Qxf6 {[%clk 0:00:33]}  Rxf6 {[%clk 0:00:51]} 27. Rcxe3 {[%clk 0:00:34]}  Rf1+ {[%clk 0:00:35]} 28. Rxf1 {[%clk 0:00:32]}  Rxe3 {[%clk 0:00:36]} 29. Rf5 {[%clk 0:00:25]}  c6 {[%clk 0:00:33]} 30. Bh5 {[%clk 0:00:25]}  Re7 {[%clk 0:00:23]} 31. Kh2 {[%clk 0:00:23]}  Kg7 {[%clk 0:00:23]} 32. Kg3 {[%clk 0:00:21]}  Bd3 {[%clk 0:00:23]} 33. Rf4 {[%clk 0:00:15]}  Be2 {[%clk 0:00:23]} 34. Bg4 {[%clk 0:00:11]}  Bxg4 {[%clk 0:00:19]} 35. Rxg4+ {[%clk 0:00:12]}  Kf8 {[%clk 0:00:17]} 36. Rh4 {[%clk 0:00:13]}  Re6 {[%clk 0:00:14]} 37. Kf3 {[%clk 0:00:11]}  b6 {[%clk 0:00:12]} 38. a4 {[%clk 0:00:06]}  Kg7 {[%clk 0:00:11]} 39. a5 {[%clk 0:00:07]}  bxa5 {[%clk 0:00:11]} 40. bxa5 {[%clk 0:00:08]}  f5 {[%clk 0:00:11]} 41. g4 {[%clk 0:00:06]}  Re4 {[%clk 0:00:11]} 42. Rh5 {[%clk 0:00:05]}  fxg4+ {[%clk 0:00:11]} 43. hxg4 {[%clk 0:00:05]}  Rxd4 {[%clk 0:00:12]} 44. Re5 {[%clk 0:00:06]}  Ra4 {[%clk 0:00:07]} 45. Re6 {[%clk 0:00:05]}  Rc4 {[%clk 0:00:06]} 46. Kg3 {[%clk 0:00:04]}  d4 {[%clk 0:00:06]} 47. Kf3 {[%clk 0:00:04]}  c5 {[%clk 0:00:05]} 48. Rxa6 {[%clk 0:00:02]}  Rc3+ {[%clk 0:00:04]} 49. Ke2 {[%clk 0:00:02]}  c4 {[%clk 0:00:03]} 50. Rd6 {[%clk 0:00:02]}  d3+ {[%clk 0:00:04]} 51. Ke3 {[%clk 0:00:02]}  Ra3 {[%clk 0:00:03]} 52. Rd4 {[%clk 0:00:02]}  Rxa5 {[%clk 0:00:02]} 53. Rxc4 {[%clk 0:00:02]}  Rd5 {[%clk 0:00:03]} 54. Kd2 {[%clk 0:00:02]}  Kg6 {[%clk 0:00:04]} 55. Rc6+ {[%clk 0:00:01]}  Kg5 {[%clk 0:00:04]} 56. Ra6 {[%clk 0:00:02]}  Rd4 {[%clk 0:00:04]} 57. Rb6 {[%clk 0:00:02]}  Rd7 {[%clk 0:00:03]} 58. Ra6 {[%clk 0:00:02]}  Rd4 {[%clk 0:00:03]} 59. Rb6 {[%clk 0:00:02]}  Rxg4 {[%clk 0:00:03]} 60. Kxd3 {[%clk 0:00:03]}  Rf4 {[%clk 0:00:02]} 61. Ke3 {[%clk 0:00:03]}  Rf5 {[%clk 0:00:02]} 62. Rb8 {[%clk 0:00:03]}  h5 {[%clk 0:00:02]} 63. Rg8+ {[%clk 0:00:03]}  Kh4 {[%clk 0:00:02]} 64. Ke4 {[%clk 0:00:03]}  Rf1 {[%clk 0:00:02]} 65. Ke3 {[%clk 0:00:04]}  Kh3 {[%clk 0:00:02]} 66. Ke2 {[%clk 0:00:04]}  Rf6 {[%clk 0:00:03]} 67. Ke3 {[%clk 0:00:05]}  h4 {[%clk 0:00:03]} 68. Ke2 {[%clk 0:00:05]}  Kh2 {[%clk 0:00:04]} 69. Ke1 {[%clk 0:00:06]}  h3 {[%clk 0:00:04]} 70. Ke2 {[%clk 0:00:06]}  Rf5 {[%clk 0:00:05]} 71. Ke1 {[%clk 0:00:06]}  Rf3 {[%clk 0:00:05]} 72. Ke2 {[%clk 0:00:07]}  Rg3 {[%clk 0:00:05]} 73. Rf8 {[%clk 0:00:06]}  Kg2 {[%clk 0:00:04]} 74. Rf2+ {[%clk 0:00:06]}  Kh1 {[%clk 0:00:04]} 75. Rf1+ {[%clk 0:00:05]}  Rg1 {[%clk 0:00:05]} 76. Kf2 {[%clk 0:00:05]}  h2 {[%clk 0:00:04]} 77. Ke2 {[%clk 0:00:05]}  Kg2 {[%clk 0:00:05]} 0-1


[Site "https://www.chess.com"]

[Event "Titled Tuesday Blitz April 25 Early 2023"]
[White "Tari, Aryan"]
[Black "Bilych, Olexiy"]
[WhiteFideId "1510045"]
[BlackFideId "14156504"]
[WhiteElo "2561"]
[BlackElo "2320"]
[Result "0-1"]
[Round "05"]
[TimeControl "180+2"]
[Date "2023.04.25"]
[WhiteClock "0:00:06"]
[BlackClock "0:00:16"]

1. e4 {[%clk 0:03:00]}  c5 {[%clk 0:02:58]} 2. Nf3 {[%clk 0:03:00]}  d6 {[%clk 0:02:58]} 3. d4 {[%clk 0:02:54]}  cxd4 {[%clk 0:02:59]} 4. Qxd4 {[%clk 0:02:54]}  Nc6 {[%clk 0:02:58]} 5. Bb5 {[%clk 0:02:54]}  a6 {[%clk 0:02:58]} 6. Bxc6+ {[%clk 0:02:54]}  bxc6 {[%clk 0:02:59]} 7. c4 {[%clk 0:02:54]}  e5 {[%clk 0:02:59]} 8. Qd3 {[%clk 0:02:54]}  Qc7 {[%clk 0:02:49]} 9. O-O {[%clk 0:02:52]}  h6 {[%clk 0:02:46]} 10. Nc3 {[%clk 0:02:52]}  Nf6 {[%clk 0:02:46]} 11. h3 {[%clk 0:02:52]}  Be7 {[%clk 0:02:45]} 12. Be3 {[%clk 0:02:50]}  O-O {[%clk 0:02:38]} 13. Rac1 {[%clk 0:02:50]}  Be6 {[%clk 0:02:32]} 14. Nd5 {[%clk 0:02:39]}  cxd5 {[%clk 0:02:21]} 15. cxd5 {[%clk 0:02:39]}  Qb7 {[%clk 0:02:18]} 16. dxe6 {[%clk 0:02:37]}  Qxe4 {[%clk 0:02:14]} 17. Qxe4 {[%clk 0:02:31]}  Nxe4 {[%clk 0:02:15]} 18. Rc7 {[%clk 0:02:12]}  Rfe8 {[%clk 0:02:15]} 19. exf7+ {[%clk 0:02:05]}  Kxf7 {[%clk 0:02:16]} 20. Rfc1 {[%clk 0:02:01]}  Ke6 {[%clk 0:02:09]} 21. Ne1 {[%clk 0:01:56]}  Nf6 {[%clk 0:02:07]} 22. R7c6 {[%clk 0:01:46]}  Nd5 {[%clk 0:01:57]} 23. Bd2 {[%clk 0:01:46]}  Reb8 {[%clk 0:01:55]} 24. Nd3 {[%clk 0:01:46]}  Kd7 {[%clk 0:01:48]} 25. R6c4 {[%clk 0:01:41]}  Bf6 {[%clk 0:01:39]} 26. b3 {[%clk 0:01:40]}  Rc8 {[%clk 0:01:30]} 27. Kf1 {[%clk 0:01:40]}  Nb6 {[%clk 0:01:30]} 28. Rb4 {[%clk 0:01:33]}  Rxc1+ {[%clk 0:01:26]} 29. Bxc1 {[%clk 0:01:34]}  Nd5 {[%clk 0:01:26]} 30. Ra4 {[%clk 0:01:34]}  Nc3 {[%clk 0:01:18]} 31. Ra5 {[%clk 0:01:32]}  Bd8 {[%clk 0:01:12]} 32. Ra3 {[%clk 0:01:33]}  Nb5 {[%clk 0:00:54]} 33. Ra4 {[%clk 0:01:33]}  Nc3 {[%clk 0:00:53]} 34. Rg4 {[%clk 0:01:33]}  g5 {[%clk 0:00:51]} 35. Bd2 {[%clk 0:01:30]}  Nd5 {[%clk 0:00:45]} 36. Ra4 {[%clk 0:01:18]}  Nb6 {[%clk 0:00:39]} 37. Ra3 {[%clk 0:01:18]}  e4 {[%clk 0:00:34]} 38. Nb2 {[%clk 0:01:14]}  Bf6 {[%clk 0:00:28]} 39. Na4 {[%clk 0:00:59]}  Nd5 {[%clk 0:00:28]} 40. b4 {[%clk 0:00:52]}  Rc8 {[%clk 0:00:26]} 41. Ke1 {[%clk 0:00:51]}  Bd4 {[%clk 0:00:24]} 42. Rb3 {[%clk 0:00:44]}  Rc2 {[%clk 0:00:21]} 43. b5 {[%clk 0:00:44]}  axb5 {[%clk 0:00:17]} 44. Rxb5 {[%clk 0:00:45]}  Nc7 {[%clk 0:00:18]} 45. Rb4 {[%clk 0:00:42]}  Bxf2+ {[%clk 0:00:18]} 46. Kd1 {[%clk 0:00:40]}  Rxa2 {[%clk 0:00:16]} 47. Nc3 {[%clk 0:00:36]}  Ra1+ {[%clk 0:00:15]} 48. Ke2 {[%clk 0:00:37]}  e3 {[%clk 0:00:12]} 49. Bxe3 {[%clk 0:00:34]}  Bxe3 {[%clk 0:00:13]} 50. Kxe3 {[%clk 0:00:34]}  Ra3 {[%clk 0:00:14]} 51. Kd4 {[%clk 0:00:03]}  Rxc3 {[%clk 0:00:13]} 52. Kxc3 {[%clk 0:00:03]}  Nd5+ {[%clk 0:00:14]} 53. Kc4 {[%clk 0:00:04]}  Nxb4 {[%clk 0:00:14]} 54. Kxb4 {[%clk 0:00:05]}  Ke6 {[%clk 0:00:15]} 55. Kc4 {[%clk 0:00:06]}  Ke5 {[%clk 0:00:15]} 56. Kd3 {[%clk 0:00:07]}  Kf4 {[%clk 0:00:16]} 57. Kd4 {[%clk 0:00:06]}  Kg3 {[%clk 0:00:16]} 0-1


[Site "https://www.chess.com"]

[Event "Titled Tuesday Blitz April 25 Early 2023"]
[White "Sarana, Alexey"]
[Black "Pakleza, Zbigniew"]
[WhiteFideId "24133795"]
[BlackFideId "1119290"]
[WhiteElo "2714"]
[BlackElo "2410"]
[Result "1-0"]
[Round "05"]
[TimeControl "180+2"]
[Date "2023.04.25"]
[WhiteClock "0:00:04"]
[BlackClock "0:00:01"]

1. c4 {[%clk 0:03:00]}  c6 {[%clk 0:02:59]} 2. Nf3 {[%clk 0:02:58]}  d5 {[%clk 0:03:00]} 3. d4 {[%clk 0:02:58]}  Nf6 {[%clk 0:03:01]} 4. Nc3 {[%clk 0:02:58]}  Qb6 {[%clk 0:02:58]} 5. e3 {[%clk 0:02:54]}  Bf5 {[%clk 0:02:58]} 6. Be2 {[%clk 0:02:54]}  e6 {[%clk 0:02:58]} 7. Nh4 {[%clk 0:02:53]}  Be4 {[%clk 0:02:58]} 8. O-O {[%clk 0:02:48]}  Be7 {[%clk 0:02:57]} 9. g3 {[%clk 0:02:41]}  O-O {[%clk 0:02:49]} 10. Nxe4 {[%clk 0:02:35]}  Nxe4 {[%clk 0:02:50]} 11. Ng2 {[%clk 0:02:32]}  Rd8 {[%clk 0:02:46]} 12. Qc2 {[%clk 0:02:32]}  Nd7 {[%clk 0:02:43]} 13. Bd3 {[%clk 0:02:16]}  Nef6 {[%clk 0:02:37]} 14. c5 {[%clk 0:02:09]}  Qc7 {[%clk 0:02:37]} 15. b4 {[%clk 0:02:09]}  e5 {[%clk 0:02:34]} 16. f4 {[%clk 0:02:09]}  e4 {[%clk 0:02:32]} 17. Be2 {[%clk 0:02:09]}  b6 {[%clk 0:02:15]} 18. cxb6 {[%clk 0:02:06]}  axb6 {[%clk 0:02:08]} 19. b5 {[%clk 0:01:50]}  c5 {[%clk 0:02:05]} 20. Bb2 {[%clk 0:01:50]}  c4 {[%clk 0:01:55]} 21. a4 {[%clk 0:01:49]}  Bb4 {[%clk 0:01:50]} 22. g4 {[%clk 0:01:43]}  Ra7 {[%clk 0:01:47]} 23. g5 {[%clk 0:01:38]}  Ne8 {[%clk 0:01:47]} 24. Bg4 {[%clk 0:01:37]}  Nd6 {[%clk 0:01:43]} 25. Rfb1 {[%clk 0:01:31]}  f5 {[%clk 0:01:25]} 26. gxf6 {[%clk 0:01:23]}  Nxf6 {[%clk 0:01:25]} 27. Bh3 {[%clk 0:01:23]}  Qe7 {[%clk 0:01:19]} 28. Kh1 {[%clk 0:00:55]}  Rda8 {[%clk 0:01:16]} 29. Rg1 {[%clk 0:00:40]}  Kh8 {[%clk 0:01:08]} 30. Nh4 {[%clk 0:00:40]}  Ng8 {[%clk 0:00:50]} 31. Rg5 {[%clk 0:00:37]}  c3 {[%clk 0:00:23]} 32. Bc1 {[%clk 0:00:35]}  Qf7 {[%clk 0:00:14]} 33. Qb3 {[%clk 0:00:31]}  Ba5 {[%clk 0:00:06]} 34. Ra2 {[%clk 0:00:13]}  Nc4 {[%clk 0:00:04]} 35. Rag2 {[%clk 0:00:13]}  Nh6 {[%clk 0:00:01]} 36. Nf5 {[%clk 0:00:06]}  Qf6 {[%clk 0:00:01]} 37. Nxg7 {[%clk 0:00:04]}  Rxg7 {[%clk 0:00:01]} 38. Rxg7 {[%clk 0:00:05]}  Qh4 {[%clk 0:00:01]} 39. R7g3 {[%clk 0:00:05]}  Nf7 {[%clk 0:00:01]} 40. Qd1 {[%clk 0:00:05]}  Nfd6 {[%clk 0:00:02]} 41. Qg1 {[%clk 0:00:05]}  h5 {[%clk 0:00:01]} 42. Rg8+ {[%clk 0:00:04]} 1-0


[Site "https://www.chess.com"]

[Event "Titled Tuesday Blitz April 25 Early 2023"]
[White "Horvath, Dominik"]
[Black "So, Wesley"]
[WhiteFideId "1642561"]
[BlackFideId "5202213"]
[WhiteElo "2407"]
[BlackElo "2749"]
[Result "0-1"]
[Round "05"]
[TimeControl "180+2"]
[Date "2023.04.25"]
[WhiteClock "0:00:03"]
[BlackClock "0:00:24"]

1. d4 {[%clk 0:02:45]}  d5 {[%clk 0:02:55]} 2. c4 {[%clk 0:02:43]}  e6 {[%clk 0:02:56]} 3. Nf3 {[%clk 0:02:42]}  Nf6 {[%clk 0:02:56]} 4. Nc3 {[%clk 0:02:42]}  a6 {[%clk 0:02:56]} 5. cxd5 {[%clk 0:02:41]}  exd5 {[%clk 0:02:57]} 6. Bf4 {[%clk 0:02:37]}  Bd6 {[%clk 0:02:55]} 7. Bxd6 {[%clk 0:02:37]}  Qxd6 {[%clk 0:02:56]} 8. e3 {[%clk 0:02:38]}  O-O {[%clk 0:02:49]} 9. Bd3 {[%clk 0:02:38]}  Re8 {[%clk 0:02:47]} 10. h3 {[%clk 0:02:35]}  Nc6 {[%clk 0:02:39]} 11. O-O {[%clk 0:02:35]}  Ne7 {[%clk 0:02:36]} 12. Ne5 {[%clk 0:02:27]}  Bf5 {[%clk 0:02:32]} 13. Bxf5 {[%clk 0:02:24]}  Nxf5 {[%clk 0:02:33]} 14. Qb3 {[%clk 0:02:21]}  Rab8 {[%clk 0:02:29]} 15. Nd3 {[%clk 0:02:05]}  c6 {[%clk 0:02:20]} 16. Qb4 {[%clk 0:02:05]}  Qc7 {[%clk 0:02:12]} 17. Rac1 {[%clk 0:02:05]}  h5 {[%clk 0:02:03]} 18. a4 {[%clk 0:01:48]}  Re7 {[%clk 0:01:51]} 19. a5 {[%clk 0:01:35]}  Rbe8 {[%clk 0:01:49]} 20. Ne5 {[%clk 0:01:03]}  Re6 {[%clk 0:01:39]} 21. Qa4 {[%clk 0:00:39]}  Qd8 {[%clk 0:01:33]} 22. Qc2 {[%clk 0:00:32]}  g6 {[%clk 0:01:30]} 23. b4 {[%clk 0:00:28]}  Nd6 {[%clk 0:01:20]} 24. Na4 {[%clk 0:00:28]}  Nfe4 {[%clk 0:01:14]} 25. Nc5 {[%clk 0:00:25]}  Nxc5 {[%clk 0:01:05]} 26. bxc5 {[%clk 0:00:26]}  Nb5 {[%clk 0:01:04]} 27. Ra1 {[%clk 0:00:24]}  Kg7 {[%clk 0:01:01]} 28. Nd3 {[%clk 0:00:21]}  Qg5 {[%clk 0:00:57]} 29. Nf4 {[%clk 0:00:21]}  Re4 {[%clk 0:00:55]} 30. Ne2 {[%clk 0:00:19]}  Qf6 {[%clk 0:00:48]} 31. Nc3 {[%clk 0:00:18]}  R4e6 {[%clk 0:00:42]} 32. Nxb5 {[%clk 0:00:18]}  axb5 {[%clk 0:00:34]} 33. a6 {[%clk 0:00:19]}  bxa6 {[%clk 0:00:34]} 34. Rxa6 {[%clk 0:00:20]}  g5 {[%clk 0:00:35]} 35. Ra7 {[%clk 0:00:19]}  g4 {[%clk 0:00:34]} 36. Kh2 {[%clk 0:00:16]}  Rxe3 {[%clk 0:00:32]} 37. fxe3 {[%clk 0:00:09]}  Qxf1 {[%clk 0:00:33]} 38. e4 {[%clk 0:00:05]}  Rxe4 {[%clk 0:00:31]} 39. Qd2 {[%clk 0:00:06]}  Qf6 {[%clk 0:00:28]} 40. Rc7 {[%clk 0:00:03]}  Rxd4 {[%clk 0:00:26]} 41. Qe3 {[%clk 0:00:03]}  Re4 {[%clk 0:00:25]} 42. Qd2 {[%clk 0:00:03]}  Qe5+ {[%clk 0:00:24]} 0-1


[Site "https://www.chess.com"]

[Event "Titled Tuesday Blitz April 25 Early 2023"]
[White "Andreikin, Dmitry"]
[Black "Bronstein, Or"]
[WhiteFideId "4158814"]
[BlackFideId "2815770"]
[WhiteElo "2736"]
[BlackElo "2356"]
[Result "1-0"]
[Round "05"]
[TimeControl "180+2"]
[Date "2023.04.25"]
[WhiteClock "0:00:04"]
[BlackClock "0:00:09"]

1. Nf3 {[%clk 0:03:00]}  c5 {[%clk 0:02:55]} 2. c4 {[%clk 0:03:00]}  Nf6 {[%clk 0:02:54]} 3. Nc3 {[%clk 0:03:00]}  e6 {[%clk 0:02:50]} 4. e4 {[%clk 0:02:59]}  Nc6 {[%clk 0:02:48]} 5. Be2 {[%clk 0:03:00]}  Qb6 {[%clk 0:02:42]} 6. O-O {[%clk 0:02:59]}  Be7 {[%clk 0:02:41]} 7. h3 {[%clk 0:02:54]}  d6 {[%clk 0:02:37]} 8. Rb1 {[%clk 0:02:46]}  O-O {[%clk 0:02:36]} 9. a3 {[%clk 0:02:46]}  a6 {[%clk 0:02:34]} 10. b4 {[%clk 0:02:42]}  Qc7 {[%clk 0:02:33]} 11. d3 {[%clk 0:02:26]}  Nd4 {[%clk 0:02:32]} 12. Be3 {[%clk 0:02:26]}  Nxe2+ {[%clk 0:02:24]} 13. Qxe2 {[%clk 0:02:22]}  Bd7 {[%clk 0:02:14]} 14. bxc5 {[%clk 0:01:40]}  dxc5 {[%clk 0:02:13]} 15. e5 {[%clk 0:01:32]}  Ne8 {[%clk 0:02:13]} 16. Ne4 {[%clk 0:01:32]}  Bc6 {[%clk 0:02:08]} 17. Bf4 {[%clk 0:01:21]}  b5 {[%clk 0:01:57]} 18. Qe3 {[%clk 0:01:21]}  Qb7 {[%clk 0:01:50]} 19. Nh2 {[%clk 0:01:12]}  Bxe4 {[%clk 0:01:41]} 20. dxe4 {[%clk 0:01:13]}  Rd8 {[%clk 0:01:35]} 21. Rfd1 {[%clk 0:01:03]}  Nc7 {[%clk 0:01:34]} 22. Ng4 {[%clk 0:01:00]}  Rxd1+ {[%clk 0:01:32]} 23. Rxd1 {[%clk 0:01:00]}  bxc4 {[%clk 0:01:07]} 24. Rd7 {[%clk 0:00:56]}  Bd8 {[%clk 0:01:03]} 25. Qxc5 {[%clk 0:00:35]}  Qxe4 {[%clk 0:01:03]} 26. Bd2 {[%clk 0:00:20]}  Nd5 {[%clk 0:01:02]} 27. Bb4 {[%clk 0:00:21]}  Nxb4 {[%clk 0:00:28]} 28. axb4 {[%clk 0:00:22]}  h5 {[%clk 0:00:26]} 29. Ne3 {[%clk 0:00:22]}  Bg5 {[%clk 0:00:21]} 30. Nxc4 {[%clk 0:00:19]}  h4 {[%clk 0:00:16]} 31. Rd1 {[%clk 0:00:19]}  Bf4 {[%clk 0:00:13]} 32. Qd4 {[%clk 0:00:15]}  Qxd4 {[%clk 0:00:11]} 33. Rxd4 {[%clk 0:00:16]}  g5 {[%clk 0:00:11]} 34. Kf1 {[%clk 0:00:17]}  Rb8 {[%clk 0:00:12]} 35. Na5 {[%clk 0:00:11]}  Bxe5 {[%clk 0:00:11]} 36. Rg4 {[%clk 0:00:12]}  Bf6 {[%clk 0:00:10]} 37. Nc6 {[%clk 0:00:10]}  Rb5 {[%clk 0:00:10]} 38. Rc4 {[%clk 0:00:11]}  Kg7 {[%clk 0:00:10]} 39. Ke2 {[%clk 0:00:11]}  Kg6 {[%clk 0:00:11]} 40. Kf3 {[%clk 0:00:10]}  Bg7 {[%clk 0:00:11]} 41. Ne7+ {[%clk 0:00:09]}  Kf6 {[%clk 0:00:11]} 42. Nc8 {[%clk 0:00:09]}  Bf8 {[%clk 0:00:11]} 43. Na7 {[%clk 0:00:05]}  Rxb4 {[%clk 0:00:11]} 44. Rc8 {[%clk 0:00:05]}  Bd6 {[%clk 0:00:11]} 45. Nc6 {[%clk 0:00:06]}  Rb3+ {[%clk 0:00:11]} 46. Ke4 {[%clk 0:00:04]}  Rb2 {[%clk 0:00:10]} 47. f3 {[%clk 0:00:04]}  Rxg2 {[%clk 0:00:10]} 48. Rd8 {[%clk 0:00:05]}  Ba3 {[%clk 0:00:09]} 49. Rd7 {[%clk 0:00:05]}  Re2+ {[%clk 0:00:08]} 50. Kd3 {[%clk 0:00:05]}  Re1 {[%clk 0:00:09]} 51. Kd2 {[%clk 0:00:04]}  Rf1 {[%clk 0:00:07]} 52. Nd8 {[%clk 0:00:05]}  Bb4+ {[%clk 0:00:05]} 53. Ke2 {[%clk 0:00:04]}  Re1+ {[%clk 0:00:05]} 54. Kf2 {[%clk 0:00:04]}  Kg6 {[%clk 0:00:06]} 55. Nxf7 {[%clk 0:00:03]}  Rb1 {[%clk 0:00:05]} 56. Ne5+ {[%clk 0:00:03]}  Kf6 {[%clk 0:00:06]} 57. Ng4+ {[%clk 0:00:03]}  Kf5 {[%clk 0:00:06]} 58. Rf7+ {[%clk 0:00:03]}  Kg6 {[%clk 0:00:07]} 59. Rf6+ {[%clk 0:00:04]}  Kg7 {[%clk 0:00:07]} 60. Rxe6 {[%clk 0:00:04]}  Rb2+ {[%clk 0:00:07]} 61. Ke3 {[%clk 0:00:04]}  a5 {[%clk 0:00:08]} 62. Ra6 {[%clk 0:00:04]}  Bd2+ {[%clk 0:00:09]} 63. Ke4 {[%clk 0:00:04]}  Rb4+ {[%clk 0:00:08]} 64. Kd3 {[%clk 0:00:04]}  a4 {[%clk 0:00:09]} 65. Kxd2 {[%clk 0:00:04]}  Rb3 {[%clk 0:00:09]} 66. Ke2 {[%clk 0:00:03]}  a3 {[%clk 0:00:09]} 67. Ne5 {[%clk 0:00:04]}  Rb2+ {[%clk 0:00:09]} 68. Ke3 {[%clk 0:00:05]}  a2 {[%clk 0:00:10]} 69. Ke4 {[%clk 0:00:05]}  Rh2 {[%clk 0:00:10]} 70. Kf5 {[%clk 0:00:05]}  Rxh3 {[%clk 0:00:10]} 71. Rxa2 {[%clk 0:00:05]}  Rg3 {[%clk 0:00:11]} 72. Ra7+ {[%clk 0:00:05]}  Kf8 {[%clk 0:00:10]} 73. Rh7 {[%clk 0:00:04]}  h3 {[%clk 0:00:10]} 74. Rh5 {[%clk 0:00:04]}  Ke8 {[%clk 0:00:09]} 75. Ke4 {[%clk 0:00:04]}  Ke7 {[%clk 0:00:09]} 76. Ng4 {[%clk 0:00:04]}  Ke6 {[%clk 0:00:09]} 77. Rxg5 {[%clk 0:00:03]}  h2 {[%clk 0:00:09]} 78. Rh5 {[%clk 0:00:03]}  Rg2 {[%clk 0:00:08]} 79. Rxh2 {[%clk 0:00:04]}  Rg1 {[%clk 0:00:09]} 80. Re2 {[%clk 0:00:03]}  Rg3 {[%clk 0:00:09]} 81. Kf4+ {[%clk 0:00:04]} 1-0


[Site "https://www.chess.com"]

[Event "Titled Tuesday Blitz April 25 Early 2023"]
[White "Vetoshko, Volodymyr"]
[Black "Le, Tuan Minh"]
[WhiteFideId "14122480"]
[BlackFideId "12401153"]
[WhiteElo "2422"]
[BlackElo "2566"]
[Result "0-1"]
[Round "05"]
[TimeControl "180+2"]
[Date "2023.04.25"]
[WhiteClock "0:00:04"]
[BlackClock "0:01:01"]

1. e4 {[%clk 0:02:57]}  c5 {[%clk 0:02:59]} 2. Nf3 {[%clk 0:02:57]}  Nf6 {[%clk 0:02:59]} 3. e5 {[%clk 0:02:56]}  Nd5 {[%clk 0:02:59]} 4. Nc3 {[%clk 0:02:56]}  e6 {[%clk 0:02:59]} 5. Ne4 {[%clk 0:02:57]}  f5 {[%clk 0:02:59]} 6. Nc3 {[%clk 0:02:57]}  Ne7 {[%clk 0:02:59]} 7. d4 {[%clk 0:02:38]}  cxd4 {[%clk 0:02:59]} 8. Nxd4 {[%clk 0:02:39]}  a6 {[%clk 0:02:59]} 9. g4 {[%clk 0:02:30]}  Nbc6 {[%clk 0:02:59]} 10. Nxc6 {[%clk 0:02:05]}  bxc6 {[%clk 0:02:59]} 11. Bd3 {[%clk 0:01:59]}  Qc7 {[%clk 0:02:08]} 12. f4 {[%clk 0:01:55]}  g6 {[%clk 0:02:08]} 13. h4 {[%clk 0:01:51]}  d6 {[%clk 0:01:57]} 14. exd6 {[%clk 0:01:43]}  Qxd6 {[%clk 0:01:58]} 15. h5 {[%clk 0:01:43]}  Bg7 {[%clk 0:01:58]} 16. hxg6 {[%clk 0:01:26]}  hxg6 {[%clk 0:01:57]} 17. Rxh8+ {[%clk 0:01:25]}  Bxh8 {[%clk 0:01:58]} 18. Be3 {[%clk 0:01:06]}  Qb4 {[%clk 0:01:51]} 19. Rb1 {[%clk 0:00:46]}  Nd5 {[%clk 0:01:51]} 20. Bd2 {[%clk 0:00:42]}  Qd4 {[%clk 0:01:41]} 21. Ne2 {[%clk 0:00:35]}  Qb6 {[%clk 0:01:37]} 22. gxf5 {[%clk 0:00:26]}  exf5 {[%clk 0:01:38]} 23. c4 {[%clk 0:00:26]}  Nb4 {[%clk 0:01:29]} 24. Bc3 {[%clk 0:00:23]}  Be6 {[%clk 0:01:06]} 25. Bxh8 {[%clk 0:00:11]}  Qe3 {[%clk 0:01:05]} 26. Bc2 {[%clk 0:00:07]}  Rd8 {[%clk 0:01:02]} 27. Bd4 {[%clk 0:00:04]}  Rxd4 {[%clk 0:01:01]} 0-1


[Site "https://www.chess.com"]